[Event "*** Titled Tuesday Blitz"]
[Site "Chess.com"]
[Date "2020.04.28"]
[Round "3"]
[White "DrVitman"]
[Black "MaximDlugy"]
[Result "0-1"]
[WhiteElo "2564"]
[BlackElo "2905"]
[TimeControl "180+1"]
[EndTime "10:28:38 PDT"]
[Termination "MaximDlugy won on time"]

1. e4 {[%clk 0:03:00.9]} 1... d5 {[%clk 0:02:59.8]} 2. exd5 {[%clk 0:03:00.7]}
2... Qxd5 {[%clk 0:03:00.7]} 3. Nc3 {[%clk 0:03:01.1]} 3... Qd6 {[%clk
0:03:01.5]} 4. d4 {[%clk 0:03:00]} 4... c6 {[%clk 0:03:02]} 5. h3 {[%clk
0:02:58.7]} 5... Nf6 {[%clk 0:03:02]} 6. Nf3 {[%clk 0:02:59]} 6... Bf5 {[%clk
0:03:02.4]} 7. Be3 {[%clk 0:02:57.6]} 7... e6 {[%clk 0:03:02.7]} 8. Bd3 {[%clk
0:02:57.8]} 8... Bxd3 {[%clk 0:03:02.9]} 9. Qxd3 {[%clk 0:02:58.7]} 9... Nbd7
{[%clk 0:03:03.1]} 10. Ne2 {[%clk 0:02:56.5]} 10... Nd5 {[%clk 0:02:49.6]} 11.
c3 {[%clk 0:02:46.8]} 11... Nxe3 {[%clk 0:02:48.9]} 12. fxe3 {[%clk 0:02:47.7]}
12... Be7 {[%clk 0:02:45.6]} 13. O-O {[%clk 0:02:47.7]} 13... O-O {[%clk
0:02:45.8]} 14. Rad1 {[%clk 0:02:45.3]} 14... Rad8 {[%clk 0:02:41.7]} 15. e4
{[%clk 0:02:13.6]} 15... e5 {[%clk 0:02:38.7]} 16. Qe3 {[%clk 0:02:05.6]} 16...
Qe6 {[%clk 0:02:31.3]} 17. Ng3 {[%clk 0:01:51.7]} 17... g6 {[%clk 0:02:11.5]}
18. b3 {[%clk 0:01:49.6]} 18... Rfe8 {[%clk 0:02:03.6]} 19. d5 {[%clk
0:01:27.7]} 19... cxd5 {[%clk 0:01:56.2]} 20. exd5 {[%clk 0:01:25.9]} 20... Qb6
{[%clk 0:01:51.3]} 21. Qxb6 {[%clk 0:01:21.6]} 21... Nxb6 {[%clk 0:01:48.1]} 22.
c4 {[%clk 0:00:41.6]} 22... f5 {[%clk 0:01:40.5]} 23. Rfe1 {[%clk 0:00:35.3]}
23... Bd6 {[%clk 0:01:31.9]} 24. Ng5 {[%clk 0:00:26.7]} 24... e4 {[%clk
0:01:31.7]} 25. Ne2 {[%clk 0:00:15.8]} 25... Nd7 {[%clk 0:01:32.2]} 26. Ne6
{[%clk 0:00:15.3]} 26... Rc8 {[%clk 0:01:33]} 27. N2d4 {[%clk 0:00:14.7]} 27...
Nc5 {[%clk 0:01:33.1]} 28. Nxc5 {[%clk 0:00:14.2]} 28... Bxc5 {[%clk 0:01:33.3]}
29. Kh1 {[%clk 0:00:14.4]} 29... Kf7 {[%clk 0:01:16.7]} 30. Ne6 {[%clk
0:00:12.4]} 30... Bd6 {[%clk 0:01:15.9]} 31. Rb1 {[%clk 0:00:08]} 31... a5
{[%clk 0:01:14.2]} 32. Rbc1 {[%clk 0:00:07.2]} 32... b6 {[%clk 0:01:14.7]} 33.
Nd4 {[%clk 0:00:06.5]} 33... Kf6 {[%clk 0:01:14.5]} 34. Nc6 {[%clk 0:00:06.2]}
34... f4 {[%clk 0:01:12.1]} 35. a3 {[%clk 0:00:04.9]} 35... Bxa3 {[%clk
0:01:10.7]} 36. Rf1 {[%clk 0:00:04.6]} 36... Bxc1 {[%clk 0:01:10.5]} 37. Rxc1
{[%clk 0:00:03.3]} 37... Rxc6 {[%clk 0:01:10.9]} 38. dxc6 {[%clk 0:00:02.8]}
38... Rc8 {[%clk 0:01:11.6]} 39. Rf1 {[%clk 0:00:02]} 39... Ke5 {[%clk
0:01:11.9]} 0-1

[Event "*** Titled Tuesday Blitz"]
[Site "Chess.com"]
[Date "2020.04.28"]
[Round "3"]
[White "DanielRensch"]
[Black "GM4life"]
[Result "1-0"]
[WhiteElo "2495"]
[BlackElo "2178"]
[TimeControl "180+1"]
[EndTime "10:28:38 PDT"]
[Termination "DanielRensch won on time"]

1. e4 {[%clk 0:02:49]} 1... c5 {[%clk 0:02:59.5]} 2. Nf3 {[%clk 0:02:47]} 2...
d6 {[%clk 0:02:59.6]} 3. d4 {[%clk 0:02:46.8]} 3... cxd4 {[%clk 0:02:59.8]} 4.
Nxd4 {[%clk 0:02:47.7]} 4... Nf6 {[%clk 0:02:59.9]} 5. Nc3 {[%clk 0:02:47.9]}
5... a6 {[%clk 0:03:00.6]} 6. Be3 {[%clk 0:02:47.7]} 6... e5 {[%clk 0:03:00.5]}
7. Nb3 {[%clk 0:02:47.4]} 7... Be7 {[%clk 0:03:01.1]} 8. f3 {[%clk 0:02:47.7]}
8... Be6 {[%clk 0:03:01.5]} 9. Qd2 {[%clk 0:02:47.3]} 9... O-O {[%clk 0:03:02]}
10. O-O-O {[%clk 0:02:47.4]} 10... Nbd7 {[%clk 0:03:02.5]} 11. g4 {[%clk
0:02:46.1]} 11... b5 {[%clk 0:03:03]} 12. g5 {[%clk 0:02:37.5]} 12... b4 {[%clk
0:03:03]} 13. Nd5 {[%clk 0:02:36.6]} 13... Nxd5 {[%clk 0:02:58.5]} 14. exd5
{[%clk 0:02:37.5]} 14... Bf5 {[%clk 0:02:58.7]} 15. Rg1 {[%clk 0:02:37.8]} 15...
a5 {[%clk 0:02:57.1]} 16. Bd3 {[%clk 0:02:37.6]} 16... Bxd3 {[%clk 0:02:52.2]}
17. Qxd3 {[%clk 0:02:38.5]} 17... a4 {[%clk 0:02:52.5]} 18. Nd2 {[%clk 0:02:36]}
18... Ra5 {[%clk 0:02:47.6]} 19. Ne4 {[%clk 0:02:26.8]} 19... Qc7 {[%clk
0:02:39.7]} 20. Kb1 {[%clk 0:02:24.7]} 20... Rb8 {[%clk 0:02:34.4]} 21. h4
{[%clk 0:02:20.8]} 21... b3 {[%clk 0:02:32.4]} 22. cxb3 {[%clk 0:02:19.1]} 22...
axb3 {[%clk 0:02:32.2]} 23. a3 {[%clk 0:02:19.6]} 23... Qb7 {[%clk 0:02:08.1]}
24. Rd2 {[%clk 0:01:58.3]} 24... Qa8 {[%clk 0:02:01.4]} 25. Rc1 {[%clk
0:01:43.5]} 25... g6 {[%clk 0:01:36.6]} 26. Rc6 {[%clk 0:01:40.9]} 26... Rbb5
{[%clk 0:00:53.5]} 27. Nc3 {[%clk 0:01:34.1]} 27... Rb7 {[%clk 0:00:42.4]} 28.
Qc4 {[%clk 0:01:31.1]} 28... Bf8 {[%clk 0:00:37.6]} 29. Rd3 {[%clk 0:01:27.3]}
29... Nc5 {[%clk 0:00:36.7]} 30. Bxc5 {[%clk 0:01:23.6]} 30... dxc5 {[%clk
0:00:33.9]} 31. Ne4 {[%clk 0:01:22.1]} 31... Rb4 {[%clk 0:00:33.6]} 32. Qc3
{[%clk 0:01:13.5]} 32... c4 {[%clk 0:00:30.6]} 33. Rxc4 {[%clk 0:01:05.1]} 33...
Rxc4 {[%clk 0:00:17.4]} 34. Qxc4 {[%clk 0:01:06]} 34... Bxa3 {[%clk 0:00:16.5]}
35. Qc6 {[%clk 0:00:57.7]} 35... Qa7 {[%clk 0:00:06.3]} 36. Rxb3 {[%clk
0:00:49.2]} 36... Qg1+ {[%clk 0:00:05.7]} 37. Qc1 {[%clk 0:00:48.8]} 1-0

[Event "*** Titled Tuesday Blitz"]
[Site "Chess.com"]
[Date "2020.04.28"]
[Round "3"]
[White "Nara_Kh"]
[Black "Tapuah"]
[Result "0-1"]
[WhiteElo "2456"]
[BlackElo "2836"]
[TimeControl "180+1"]
[EndTime "10:28:39 PDT"]
[Termination "Tapuah won by resignation"]

1. e4 {[%clk 0:03:00.9]} 1... c5 {[%clk 0:02:59]} 2. Nf3 {[%clk 0:02:59.7]} 2...
e6 {[%clk 0:02:58.9]} 3. d4 {[%clk 0:02:58.6]} 3... cxd4 {[%clk 0:02:58.2]} 4.
Nxd4 {[%clk 0:02:58.5]} 4... a6 {[%clk 0:02:58.7]} 5. Bd3 {[%clk 0:02:57.8]}
5... Bc5 {[%clk 0:02:57.5]} 6. Nb3 {[%clk 0:02:56.9]} 6... Be7 {[%clk
0:02:57.2]} 7. Qg4 {[%clk 0:02:56.3]} 7... g6 {[%clk 0:02:53]} 8. Qe2 {[%clk
0:02:55.4]} 8... Qc7 {[%clk 0:02:52.7]} 9. c4 {[%clk 0:02:41]} 9... d6 {[%clk
0:02:49.7]} 10. Nc3 {[%clk 0:02:40.6]} 10... Nc6 {[%clk 0:02:46.9]} 11. O-O
{[%clk 0:02:34.6]} 11... b6 {[%clk 0:02:45.4]} 12. Be3 {[%clk 0:02:23.3]} 12...
Nf6 {[%clk 0:02:44.3]} 13. f4 {[%clk 0:02:21.6]} 13... O-O {[%clk 0:02:34.6]}
14. Kh1 {[%clk 0:02:20.5]} 14... Bb7 {[%clk 0:02:31.7]} 15. Rad1 {[%clk
0:01:53.5]} 15... Rac8 {[%clk 0:02:26.5]} 16. Bb1 {[%clk 0:01:40.1]} 16... Nb8
{[%clk 0:02:14.7]} 17. Nd2 {[%clk 0:01:37.6]} 17... Nbd7 {[%clk 0:02:14.1]} 18.
Nf3 {[%clk 0:01:24.1]} 18... Qxc4 {[%clk 0:02:10.6]} 19. Qxc4 {[%clk 0:00:55.7]}
19... Rxc4 {[%clk 0:02:10]} 20. e5 {[%clk 0:00:48.6]} 20... dxe5 {[%clk
0:01:59.7]} 21. fxe5 {[%clk 0:00:46.9]} 21... Nd5 {[%clk 0:01:41.8]} 22. Bh6
{[%clk 0:00:37.3]} 22... Rd8 {[%clk 0:01:26.1]} 23. Ne4 {[%clk 0:00:34.2]} 23...
Nc5 {[%clk 0:01:05.7]} 24. Nxc5 {[%clk 0:00:23.5]} 24... Rxc5 {[%clk 0:00:58.6]}
25. Ng5 {[%clk 0:00:23.7]} 25... Ne3 {[%clk 0:00:52.6]} 26. Rxd8+ {[%clk
0:00:20]} 26... Bxd8 {[%clk 0:00:51.9]} 27. Rg1 {[%clk 0:00:10]} 27... Bxg5
{[%clk 0:00:49.4]} 28. Bxg5 {[%clk 0:00:09.7]} 28... Nxg2 {[%clk 0:00:48]} 29.
Rxg2 {[%clk 0:00:08.9]} 29... Rxe5 {[%clk 0:00:44.9]} 30. Bd2 {[%clk 0:00:05.8]}
30... Bxg2+ {[%clk 0:00:43]} 0-1

[Event "*** Titled Tuesday Blitz"]
[Site "Chess.com"]
[Date "2020.04.28"]
[Round "3"]
[White "Moon_stone123"]
[Black "andy_rekt"]
[Result "1-0"]
[WhiteElo "2504"]
[BlackElo "2213"]
[TimeControl "180+1"]
[EndTime "10:28:39 PDT"]
[Termination "Moon_stone123 won on time"]

1. e4 {[%clk 0:03:00.9]} 1... c5 {[%clk 0:02:58.9]} 2. Ne2 {[%clk 0:03:00.3]}
2... Nc6 {[%clk 0:02:59.2]} 3. Nbc3 {[%clk 0:02:55.9]} 3... e5 {[%clk
0:02:58.2]} 4. Nd5 {[%clk 0:02:53.8]} 4... g6 {[%clk 0:02:51.8]} 5. Nec3 {[%clk
0:02:53.5]} 5... Bg7 {[%clk 0:02:49.5]} 6. Bc4 {[%clk 0:02:52.7]} 6... Nge7
{[%clk 0:02:49.2]} 7. O-O {[%clk 0:02:48.8]} 7... O-O {[%clk 0:02:48.8]} 8. d3
{[%clk 0:02:48.2]} 8... d6 {[%clk 0:02:48.9]} 9. Bg5 {[%clk 0:02:46.1]} 9... h6
{[%clk 0:02:38.2]} 10. Bh4 {[%clk 0:02:45.8]} 10... g5 {[%clk 0:02:36.9]} 11.
Bg3 {[%clk 0:02:45.5]} 11... Ng6 {[%clk 0:02:35.6]} 12. a3 {[%clk 0:02:38]}
12... Be6 {[%clk 0:02:30.9]} 13. Rb1 {[%clk 0:02:34]} 13... a6 {[%clk 0:02:30]}
14. b4 {[%clk 0:02:31.7]} 14... b5 {[%clk 0:02:27.8]} 15. Ba2 {[%clk 0:02:31.2]}
15... cxb4 {[%clk 0:01:59.3]} 16. axb4 {[%clk 0:02:29.8]} 16... Nd4 {[%clk
0:01:57.8]} 17. Ne2 {[%clk 0:02:26.6]} 17... Nxe2+ {[%clk 0:01:53]} 18. Qxe2
{[%clk 0:02:27.5]} 18... a5 {[%clk 0:01:50.7]} 19. bxa5 {[%clk 0:02:20.6]} 19...
Rxa5 {[%clk 0:01:44.2]} 20. Bb3 {[%clk 0:02:20.9]} 20... Kh8 {[%clk 0:01:30.2]}
21. Ra1 {[%clk 0:02:13.8]} 21... f5 {[%clk 0:01:27.3]} 22. exf5 {[%clk
0:02:07.4]} 22... Bxf5 {[%clk 0:01:28.2]} 23. Ne3 {[%clk 0:02:01]} 23... Bd7
{[%clk 0:01:18.9]} 24. Bd5 {[%clk 0:01:52.6]} 24... Rxa1 {[%clk 0:01:10.2]} 25.
Rxa1 {[%clk 0:01:51.4]} 25... Nf4 {[%clk 0:01:10.3]} 26. Qd2 {[%clk 0:01:44.8]}
26... Nxd5 {[%clk 0:00:49.9]} 27. Nxd5 {[%clk 0:01:44.5]} 27... Be6 {[%clk
0:00:31.7]} 28. Ne3 {[%clk 0:01:41.9]} 28... h5 {[%clk 0:00:18.9]} 29. h3 {[%clk
0:01:36.3]} 29... h4 {[%clk 0:00:19.1]} 30. Bh2 {[%clk 0:01:35.1]} 30... Qf6
{[%clk 0:00:19.7]} 31. Ra6 {[%clk 0:01:28.7]} 31... Qe7 {[%clk 0:00:13.8]} 32.
Qb4 {[%clk 0:01:24.2]} 32... Qf7 {[%clk 0:00:09.4]} 33. Qd2 {[%clk 0:01:19.7]}
33... Qe7 {[%clk 0:00:09.2]} 34. Rb6 {[%clk 0:01:13.2]} 34... Bd7 {[%clk
0:00:06.3]} 35. Nd5 {[%clk 0:01:07.9]} 35... Qe6 {[%clk 0:00:06.1]} 36. Nc3
{[%clk 0:01:07.9]} 36... e4 {[%clk 0:00:02.3]} 37. Nxe4 {[%clk 0:01:06]} 1-0

[Event "*** Titled Tuesday Blitz"]
[Site "Chess.com"]
[Date "2020.04.28"]
[Round "3"]
[White "Milchone1"]
[Black "Chuchofrio1"]
[Result "1/2-1/2"]
[WhiteElo "2496"]
[BlackElo "2224"]
[TimeControl "180+1"]
[EndTime "10:28:41 PDT"]
[Termination "Game drawn by repetition"]

1. Nf3 {[%clk 0:03:00.9]} 1... f5 {[%clk 0:02:59.4]} 2. c4 {[%clk 0:03:01.3]}
2... Nf6 {[%clk 0:02:59.2]} 3. d4 {[%clk 0:03:02.2]} 3... d6 {[%clk 0:02:59.2]}
4. g3 {[%clk 0:03:03.1]} 4... g6 {[%clk 0:02:59.1]} 5. Bg2 {[%clk 0:03:04]} 5...
Bg7 {[%clk 0:02:59.4]} 6. b4 {[%clk 0:03:04.6]} 6... O-O {[%clk 0:02:59.7]} 7.
Bb2 {[%clk 0:03:04.9]} 7... Qe8 {[%clk 0:02:59.8]} 8. Qb3 {[%clk 0:02:59.3]}
8... Kh8 {[%clk 0:02:58.8]} 9. Nbd2 {[%clk 0:02:58.7]} 9... Bd7 {[%clk
0:02:59.1]} 10. O-O {[%clk 0:02:57.4]} 10... Nc6 {[%clk 0:02:49.6]} 11. b5
{[%clk 0:02:51.7]} 11... Nd8 {[%clk 0:02:47]} 12. a4 {[%clk 0:02:50.4]} 12...
Rb8 {[%clk 0:02:46]} 13. a5 {[%clk 0:02:49.4]} 13... Nf7 {[%clk 0:02:42.9]} 14.
e3 {[%clk 0:02:45.6]} 14... e5 {[%clk 0:02:34.6]} 15. dxe5 {[%clk 0:02:46.5]}
15... Nxe5 {[%clk 0:02:35.1]} 16. Nxe5 {[%clk 0:02:44.3]} 16... dxe5 {[%clk
0:02:36]} 17. Nf3 {[%clk 0:02:43.7]} 17... Ne4 {[%clk 0:02:26.6]} 18. Rfd1
{[%clk 0:02:40.4]} 18... Qe7 {[%clk 0:02:12.7]} 19. Nxe5 {[%clk 0:02:17.6]}
19... Bxe5 {[%clk 0:01:53.6]} 20. Rxd7 {[%clk 0:02:16.8]} 20... Qxd7 {[%clk
0:01:53.1]} 21. Bxe5+ {[%clk 0:02:07.2]} 21... Kg8 {[%clk 0:01:32.4]} 22. Rd1
{[%clk 0:01:57.6]} 22... Qe6 {[%clk 0:01:21.8]} 23. Bxc7 {[%clk 0:01:51.2]}
23... Rbc8 {[%clk 0:01:21.5]} 24. b6 {[%clk 0:01:51.1]} 24... axb6 {[%clk
0:01:18]} 25. axb6 {[%clk 0:01:52]} 25... Rf7 {[%clk 0:01:00]} 26. Rd4 {[%clk
0:01:46.7]} 26... Rd7 {[%clk 0:00:53.6]} 27. Qb5 {[%clk 0:01:20.9]} 27... Rxd4
{[%clk 0:00:49.1]} 28. exd4 {[%clk 0:01:21.8]} 28... Nc3 {[%clk 0:00:33.4]} 29.
Bd5 {[%clk 0:01:20.6]} 29... Nxd5 {[%clk 0:00:31.7]} 30. cxd5 {[%clk 0:01:19.5]}
30... Qe1+ {[%clk 0:00:30.6]} 31. Kg2 {[%clk 0:01:18.3]} 31... Qe4+ {[%clk
0:00:31.1]} 32. Kf1 {[%clk 0:01:18.4]} 32... Qh1+ {[%clk 0:00:29.6]} 33. Ke2
{[%clk 0:01:17.8]} 33... Qe4+ {[%clk 0:00:30.2]} 34. Kf1 {[%clk 0:01:15.6]}
34... Qh1+ {[%clk 0:00:30.3]} 35. Ke2 {[%clk 0:01:15.7]} 35... Qe4+ {[%clk
0:00:25.3]} 36. Kd2 {[%clk 0:01:12.6]} 36... Qxd4+ {[%clk 0:00:24.4]} 37. Ke1
{[%clk 0:01:13.1]} 37... Qe4+ {[%clk 0:00:18.6]} 38. Kd1 {[%clk 0:01:13.5]}
38... Qd4+ {[%clk 0:00:17.2]} 39. Kc1 {[%clk 0:01:13.6]} 39... Qc3+ {[%clk
0:00:16.7]} 40. Kb1 {[%clk 0:01:13.1]} 40... Qe1+ {[%clk 0:00:16.4]} 41. Kb2
{[%clk 0:01:11.5]} 41... Qxf2+ {[%clk 0:00:16.7]} 42. Kb3 {[%clk 0:01:11.6]}
42... Qe3+ {[%clk 0:00:16.9]} 43. Kb4 {[%clk 0:01:10.6]} 43... Qd4+ {[%clk
0:00:15.6]} 44. Kb3 {[%clk 0:01:10.4]} 44... Qe3+ {[%clk 0:00:15.5]} 45. Kb4
{[%clk 0:01:10.4]} 45... Qd4+ {[%clk 0:00:15.9]} 46. Kb3 {[%clk 0:01:10.1]}
46... Qe3+ {[%clk 0:00:16.1]} 1/2-1/2

[Event "*** Titled Tuesday Blitz"]
[Site "Chess.com"]
[Date "2020.04.28"]
[Round "3"]
[White "CarlosAlbornoz"]
[Black "jonaszmb"]
[Result "1-0"]
[WhiteElo "2749"]
[BlackElo "2436"]
[TimeControl "180+1"]
[EndTime "10:28:42 PDT"]
[Termination "CarlosAlbornoz won by resignation"]

1. e4 {[%clk 0:03:00.9]} 1... c5 {[%clk 0:03:00]} 2. Nf3 {[%clk 0:03:00.9]} 2...
Nc6 {[%clk 0:03:00.2]} 3. d4 {[%clk 0:03:01]} 3... cxd4 {[%clk 0:03:01.1]} 4.
Nxd4 {[%clk 0:03:01.9]} 4... e5 {[%clk 0:03:01.7]} 5. Nb5 {[%clk 0:03:01.8]}
5... a6 {[%clk 0:03:02]} 6. Nd6+ {[%clk 0:03:01.7]} 6... Bxd6 {[%clk 0:03:02.6]}
7. Qxd6 {[%clk 0:03:02.6]} 7... Qf6 {[%clk 0:03:03.3]} 8. Qd1 {[%clk 0:03:02.3]}
8... Qg6 {[%clk 0:03:03.4]} 9. Nc3 {[%clk 0:03:01.8]} 9... d5 {[%clk 0:03:03.5]}
10. Nxd5 {[%clk 0:02:53]} 10... Qxe4+ {[%clk 0:03:02.9]} 11. Ne3 {[%clk
0:02:53.2]} 11... Nf6 {[%clk 0:02:35.5]} 12. Bd3 {[%clk 0:02:52.4]} 12... Qh4
{[%clk 0:02:34.4]} 13. O-O {[%clk 0:02:51.1]} 13... O-O {[%clk 0:02:28.8]} 14.
c3 {[%clk 0:02:40.6]} 14... Rd8 {[%clk 0:02:26.2]} 15. Qc2 {[%clk 0:02:40.6]}
15... e4 {[%clk 0:02:22.6]} 16. Be2 {[%clk 0:02:40.1]} 16... Ne5 {[%clk
0:02:20.7]} 17. Nc4 {[%clk 0:02:26.8]} 17... Nd3 {[%clk 0:01:52.2]} 18. Nb6
{[%clk 0:02:21.1]} 18... Rb8 {[%clk 0:01:03]} 19. Nxc8 {[%clk 0:02:20.5]} 19...
Rbxc8 {[%clk 0:01:03.9]} 20. f3 {[%clk 0:02:19.2]} 20... exf3 {[%clk 0:00:48.9]}
21. Bxf3 {[%clk 0:02:10.1]} 21... Ng4 {[%clk 0:00:31.2]} 22. h3 {[%clk
0:02:01.8]} 22... Nge5 {[%clk 0:00:22.2]} 23. Be3 {[%clk 0:01:59.4]} 23... Nc4
{[%clk 0:00:15.8]} 24. Bf2 {[%clk 0:01:47.9]} 24... Nxf2 {[%clk 0:00:15.2]} 25.
Qxf2 {[%clk 0:01:47.3]} 25... Qxf2+ {[%clk 0:00:14.9]} 26. Rxf2 {[%clk
0:01:48.2]} 26... b5 {[%clk 0:00:15.5]} 27. Bb7 {[%clk 0:01:44]} 27... Rb8
{[%clk 0:00:11.8]} 28. Bf3 {[%clk 0:01:34]} 28... f6 {[%clk 0:00:12]} 29. Re1
{[%clk 0:01:29.2]} 29... Re8 {[%clk 0:00:12.3]} 30. Bd5+ {[%clk 0:01:28]} 30...
Kf8 {[%clk 0:00:11.2]} 31. Rxe8+ {[%clk 0:01:21.2]} 31... Rxe8 {[%clk
0:00:12.1]} 32. Bxc4 {[%clk 0:01:21.2]} 32... bxc4 {[%clk 0:00:13]} 33. Rd2
{[%clk 0:01:20.6]} 33... Re1+ {[%clk 0:00:13.2]} 34. Kf2 {[%clk 0:01:20.6]}
34... Rb1 {[%clk 0:00:14.1]} 35. Ke3 {[%clk 0:01:20.1]} 35... Ra1 {[%clk
0:00:10]} 36. a3 {[%clk 0:01:19.8]} 36... Rf1 {[%clk 0:00:07.3]} 37. Kd4 {[%clk
0:01:19.3]} 37... Rf4+ {[%clk 0:00:07.5]} 38. Kc5 {[%clk 0:01:19.2]} 38... Ke7
{[%clk 0:00:07.9]} 39. Kb6 {[%clk 0:01:18.1]} 39... Ke6 {[%clk 0:00:04.6]} 40.
Kxa6 {[%clk 0:01:17.7]} 40... Ke5 {[%clk 0:00:05]} 41. a4 {[%clk 0:01:16]} 41...
Ke4 {[%clk 0:00:04.4]} 42. Rd4+ {[%clk 0:01:15.8]} 1-0

[Event "*** Titled Tuesday Blitz"]
[Site "Chess.com"]
[Date "2020.04.28"]
[Round "3"]
[White "Pawnpusherschessaccademy"]
[Black "Stormeman100100"]
[Result "0-1"]
[WhiteElo "2231"]
[BlackElo "2508"]
[TimeControl "180+1"]
[EndTime "10:28:45 PDT"]
[Termination "Stormeman100100 won by resignation"]

1. e4 {[%clk 0:03:00.9]} 1... c6 {[%clk 0:02:58.7]} 2. d4 {[%clk 0:02:57.4]}
2... d5 {[%clk 0:02:58.7]} 3. e5 {[%clk 0:02:58]} 3... Bf5 {[%clk 0:02:58]} 4.
Ne2 {[%clk 0:02:57.7]} 4... e6 {[%clk 0:02:55.3]} 5. Ng3 {[%clk 0:02:58.2]} 5...
Bg6 {[%clk 0:02:54.8]} 6. h4 {[%clk 0:02:59.1]} 6... h6 {[%clk 0:02:51.3]} 7. h5
{[%clk 0:02:59.2]} 7... Bh7 {[%clk 0:02:51.2]} 8. Bd3 {[%clk 0:03:00.1]} 8...
Bxd3 {[%clk 0:02:50.4]} 9. cxd3 {[%clk 0:03:01]} 9... c5 {[%clk 0:02:51.3]} 10.
dxc5 {[%clk 0:03:00.6]} 10... Bxc5 {[%clk 0:02:50.7]} 11. d4 {[%clk 0:03:00.4]}
11... Bb6 {[%clk 0:02:48.2]} 12. Qg4 {[%clk 0:02:58.1]} 12... Kf8 {[%clk
0:02:47.7]} 13. Be3 {[%clk 0:02:56.7]} 13... Nc6 {[%clk 0:02:46.4]} 14. O-O
{[%clk 0:02:52.2]} 14... Nge7 {[%clk 0:02:44.2]} 15. Nc3 {[%clk 0:02:47.8]}
15... Qd7 {[%clk 0:02:43]} 16. Nb5 {[%clk 0:02:45.7]} 16... a6 {[%clk
0:02:38.6]} 17. Nd6 {[%clk 0:02:45.5]} 17... Nc8 {[%clk 0:02:35.2]} 18. Nxc8
{[%clk 0:02:42.2]} 18... Rxc8 {[%clk 0:02:34.6]} 19. Rad1 {[%clk 0:02:42]} 19...
Ne7 {[%clk 0:02:31]} 20. Rd2 {[%clk 0:02:36.3]} 20... Nf5 {[%clk 0:02:30.2]} 21.
Nxf5 {[%clk 0:02:35.3]} 21... exf5 {[%clk 0:02:31.1]} 22. Qf3 {[%clk 0:02:23.4]}
22... Kg8 {[%clk 0:02:27.8]} 23. Kh1 {[%clk 0:01:40.5]} 23... Kh7 {[%clk
0:02:24.5]} 24. Rg1 {[%clk 0:01:39.8]} 24... g5 {[%clk 0:02:20.4]} 25. hxg6+
{[%clk 0:01:35.9]} 25... fxg6 {[%clk 0:02:19.4]} 26. g4 {[%clk 0:01:34.7]} 26...
fxg4 {[%clk 0:02:15.4]} 27. Qxg4 {[%clk 0:01:33.5]} 27... Qxg4 {[%clk
0:02:08.8]} 28. Rxg4 {[%clk 0:01:34.4]} 28... g5 {[%clk 0:01:56.9]} 29. Rg3
{[%clk 0:01:29.4]} 29... Kg6 {[%clk 0:01:54.1]} 30. Rf3 {[%clk 0:01:28.9]} 30...
Rcf8 {[%clk 0:01:49.2]} 31. Rxf8 {[%clk 0:01:28.4]} 31... Rxf8 {[%clk
0:01:49.1]} 32. Rc2 {[%clk 0:01:25.3]} 32... g4 {[%clk 0:01:37.8]} 33. Kg2
{[%clk 0:01:23.2]} 33... h5 {[%clk 0:01:37.7]} 34. Rc3 {[%clk 0:01:22.4]} 34...
Ba7 {[%clk 0:01:33.6]} 35. Rc7 {[%clk 0:01:21.8]} 35... Rf7 {[%clk 0:01:33.2]}
36. Rc8 {[%clk 0:01:08.1]} 36... Kf5 {[%clk 0:01:30.7]} 37. Rh8 {[%clk
0:01:03.6]} 37... Ke4 {[%clk 0:01:28.8]} 38. Rxh5 {[%clk 0:00:48.6]} 38... Bxd4
{[%clk 0:01:27.1]} 39. Bxd4 {[%clk 0:00:43]} 39... Kxd4 {[%clk 0:01:28]} 40. e6
{[%clk 0:00:40.3]} 40... Re7 {[%clk 0:01:22.7]} 41. Rh6 {[%clk 0:00:40.1]} 41...
Ke5 {[%clk 0:01:22.4]} 42. Kg3 {[%clk 0:00:39.5]} 42... d4 {[%clk 0:01:16.3]}
43. Kxg4 {[%clk 0:00:38.1]} 43... Ke4 {[%clk 0:01:15.6]} 44. f4 {[%clk 0:00:36]}
44... d3 {[%clk 0:01:14]} 45. f5 {[%clk 0:00:36.2]} 45... d2 {[%clk 0:01:13.8]}
46. Rh1 {[%clk 0:00:34.4]} 46... Rg7+ {[%clk 0:01:13.5]} 47. Kh5 {[%clk
0:00:27.8]} 47... Kxf5 {[%clk 0:01:12]} 48. Kh6 {[%clk 0:00:24.2]} 48... Rg6+
{[%clk 0:01:11.9]} 49. Kh7 {[%clk 0:00:23.5]} 49... Rxe6 {[%clk 0:01:11.3]} 0-1

[Event "*** Titled Tuesday Blitz"]
[Site "Chess.com"]
[Date "2020.04.28"]
[Round "3"]
[White "Galiev_Azat"]
[Black "AthanasiusLefebvre"]
[Result "1-0"]
[WhiteElo "2291"]
[BlackElo "1951"]
[TimeControl "180+1"]
[EndTime "10:28:45 PDT"]
[Termination "Galiev_Azat won on time"]

1. d4 {[%clk 0:03:00]} 1... d6 {[%clk 0:02:54.5]} 2. Bf4 {[%clk 0:02:57.9]} 2...
g6 {[%clk 0:02:55.1]} 3. Nf3 {[%clk 0:02:57.8]} 3... Bg7 {[%clk 0:02:55.7]} 4.
e3 {[%clk 0:02:58.1]} 4... Nf6 {[%clk 0:02:49.3]} 5. h3 {[%clk 0:02:57.9]} 5...
O-O {[%clk 0:02:50.2]} 6. Be2 {[%clk 0:02:57.7]} 6... c5 {[%clk 0:02:50.8]} 7.
c4 {[%clk 0:02:55.7]} 7... Nc6 {[%clk 0:02:50.4]} 8. Nc3 {[%clk 0:02:51.5]} 8...
a6 {[%clk 0:02:44.4]} 9. O-O {[%clk 0:02:49.1]} 9... Re8 {[%clk 0:02:39.5]} 10.
Bh2 {[%clk 0:02:47.4]} 10... Bf5 {[%clk 0:02:34.2]} 11. a3 {[%clk 0:02:43.6]}
11... Ne4 {[%clk 0:02:22.8]} 12. Nxe4 {[%clk 0:02:33]} 12... Bxe4 {[%clk
0:02:22.1]} 13. d5 {[%clk 0:02:19.8]} 13... Ne5 {[%clk 0:01:58.4]} 14. Nxe5
{[%clk 0:02:18.9]} 14... dxe5 {[%clk 0:01:58]} 15. Bd3 {[%clk 0:02:12.4]} 15...
Bxd3 {[%clk 0:01:45.6]} 16. Qxd3 {[%clk 0:02:10.3]} 16... f5 {[%clk 0:01:45.7]}
17. e4 {[%clk 0:02:06.6]} 17... f4 {[%clk 0:01:44]} 18. b4 {[%clk 0:01:47.1]}
18... b6 {[%clk 0:01:40.9]} 19. Rab1 {[%clk 0:01:41.2]} 19... Rb8 {[%clk
0:01:36.7]} 20. g3 {[%clk 0:01:36.4]} 20... Rf8 {[%clk 0:01:19.2]} 21. gxf4
{[%clk 0:01:31]} 21... exf4 {[%clk 0:01:18.7]} 22. f3 {[%clk 0:01:25.2]} 22...
Bd4+ {[%clk 0:01:14.5]} 23. Kh1 {[%clk 0:01:24.1]} 23... Qd7 {[%clk 0:01:14.1]}
24. Kg2 {[%clk 0:01:13.9]} 24... g5 {[%clk 0:00:45.4]} 25. Bg1 {[%clk
0:01:10.2]} 25... Bxg1 {[%clk 0:00:32.4]} 26. Rxg1 {[%clk 0:01:09.8]} 26... Qd6
{[%clk 0:00:28.9]} 27. Kf2 {[%clk 0:01:07.9]} 27... Qh6 {[%clk 0:00:18]} 28. Rg4
{[%clk 0:01:03.8]} 28... Rf6 {[%clk 0:00:04.4]} 29. Rbg1 {[%clk 0:01:02.5]}
29... Rg6 {[%clk 0:00:04]} 30. e5 {[%clk 0:01:02.6]} 30... Qxh3 {[%clk
0:00:03.1]} 31. d6 {[%clk 0:00:57]} 1-0